[Event "*** Titled Tuesday Blitz"]
[Site "Chess.com"]
[Date "2020.10.27"]
[Round "2"]
[White "Firouzja2003"]
[Black "Bodnar_Mykola"]
[Result "1-0"]
[WhiteElo "3062"]
[BlackElo "2373"]
[TimeControl "180+1"]
[EndTime "10:18:36 PDT"]
[Termination "Firouzja2003 won by resignation"]

1. d4 {[%clk 0:03:00.9]} 1... Nf6 {[%clk 0:02:53.9]} 2. c4 {[%clk 0:03:00.8]}
2... e6 {[%clk 0:02:53.8]} 3. e3 {[%clk 0:02:58.5]} 3... d5 {[%clk 0:02:51.7]}
4. cxd5 {[%clk 0:02:57.1]} 4... exd5 {[%clk 0:02:51.8]} 5. Bd3 {[%clk
0:02:57.4]} 5... c6 {[%clk 0:02:51.9]} 6. Ne2 {[%clk 0:02:56.4]} 6... Bd6 {[%clk
0:02:49.7]} 7. O-O {[%clk 0:02:56.2]} 7... O-O {[%clk 0:02:50.3]} 8. f3 {[%clk
0:02:56.4]} 8... Re8 {[%clk 0:02:46.1]} 9. Nbc3 {[%clk 0:02:56.2]} 9... c5
{[%clk 0:02:44]} 10. dxc5 {[%clk 0:02:55.7]} 10... Bxc5 {[%clk 0:02:44.9]} 11.
Kh1 {[%clk 0:02:56.1]} 11... Bxe3 {[%clk 0:02:42.2]} 12. Bxe3 {[%clk 0:02:55.6]}
12... Rxe3 {[%clk 0:02:43.1]} 13. Qd2 {[%clk 0:02:56.4]} 13... Re8 {[%clk
0:02:42.8]} 14. Nf4 {[%clk 0:02:56.4]} 14... Be6 {[%clk 0:02:39.7]} 15. Rad1
{[%clk 0:02:51.2]} 15... Nc6 {[%clk 0:02:37.7]} 16. Bb5 {[%clk 0:02:50.9]} 16...
Qb6 {[%clk 0:02:30.4]} 17. Bxc6 {[%clk 0:02:50.9]} 17... bxc6 {[%clk 0:02:30.6]}
18. Na4 {[%clk 0:02:50.7]} 18... Qb5 {[%clk 0:02:28.2]} 19. b3 {[%clk 0:02:45]}
19... c5 {[%clk 0:02:16.3]} 20. Ne2 {[%clk 0:02:43.3]} 20... Rad8 {[%clk
0:02:14.8]} 21. Rc1 {[%clk 0:02:42.4]} 21... Rc8 {[%clk 0:02:12.4]} 22. Ng3
{[%clk 0:02:34.9]} 22... c4 {[%clk 0:02:10]} 23. Nc3 {[%clk 0:02:25.7]} 23...
Qa5 {[%clk 0:02:06.6]} 24. Qd4 {[%clk 0:02:19.3]} 24... cxb3 {[%clk 0:02:04.7]}
25. axb3 {[%clk 0:02:19.4]} 25... Qb6 {[%clk 0:02:01]} 26. Nce2 {[%clk
0:02:12.3]} 26... Nd7 {[%clk 0:01:52.2]} 27. b4 {[%clk 0:02:09.3]} 27... Rc4
{[%clk 0:01:48.8]} 28. Rxc4 {[%clk 0:02:02.2]} 28... dxc4 {[%clk 0:01:49.7]} 29.
Qc3 {[%clk 0:02:01.9]} 29... Rb8 {[%clk 0:01:47.7]} 30. Rb1 {[%clk 0:01:57.6]}
30... a5 {[%clk 0:01:42.7]} 31. b5 {[%clk 0:01:55.7]} 31... a4 {[%clk 0:01:43]}
32. Nd4 {[%clk 0:01:54.8]} 32... Ra8 {[%clk 0:01:37.1]} 33. Nh5 {[%clk
0:01:48.9]} 33... f6 {[%clk 0:01:29.7]} 34. Nxe6 {[%clk 0:01:43.2]} 34... Qxe6
{[%clk 0:01:30.6]} 35. Nf4 {[%clk 0:01:43.4]} 35... Qf7 {[%clk 0:01:24.5]} 36.
b6 {[%clk 0:01:42.7]} 36... Rb8 {[%clk 0:01:18.6]} 37. Qd4 {[%clk 0:01:29.4]}
37... a3 {[%clk 0:01:15.4]} 38. Nd5 {[%clk 0:01:29.6]} 38... Qe6 {[%clk
0:00:50.5]} 39. Qxc4 {[%clk 0:01:13.2]} 39... Nxb6 {[%clk 0:00:45.4]} 40. Qc7
{[%clk 0:01:11.5]} 40... Ra8 {[%clk 0:00:30.3]} 41. Nxb6 {[%clk 0:00:57.5]}
41... a2 {[%clk 0:00:28.5]} 42. Ra1 {[%clk 0:00:58.1]} 42... Ra6 {[%clk
0:00:19]} 43. Nc4 {[%clk 0:00:33.2]} 43... Rc6 {[%clk 0:00:12.4]} 44. Qd8+
{[%clk 0:00:18.2]} 44... Kf7 {[%clk 0:00:12.7]} 45. Nd2 {[%clk 0:00:17.2]} 45...
Qe5 {[%clk 0:00:06.4]} 46. Qd7+ {[%clk 0:00:17]} 46... Kg6 {[%clk 0:00:06.8]}
47. Qd3+ {[%clk 0:00:16.1]} 47... Kh6 {[%clk 0:00:06.4]} 48. Rxa2 {[%clk
0:00:16.3]} 48... Qe1+ {[%clk 0:00:05]} 49. Nf1 {[%clk 0:00:11.1]} 49... Rc1
{[%clk 0:00:02]} 50. Kg1 {[%clk 0:00:11.3]} 50... g5 {[%clk 0:00:01.8]} 51. Qe2
{[%clk 0:00:11.1]} 51... Qxe2 {[%clk 0:00:01.9]} 52. Rxe2 {[%clk 0:00:10.9]}
52... Rc5 {[%clk 0:00:02.8]} 53. g4 {[%clk 0:00:11.3]} 53... Rf5 {[%clk
0:00:03.7]} 54. gxf5 {[%clk 0:00:11.4]} 1-0

[Event "*** Titled Tuesday Blitz"]
[Site "Chess.com"]
[Date "2020.10.27"]
[Round "2"]
[White "Rakesh"]
[Black "marabu44"]
[Result "1-0"]
[WhiteElo "2458"]
[BlackElo "2231"]
[TimeControl "180+1"]
[EndTime "10:18:36 PDT"]
[Termination "Rakesh won on time"]

1. e4 {[%clk 0:03:00.9]} 1... e5 {[%clk 0:02:58.7]} 2. Nf3 {[%clk 0:02:59.9]}
2... Nc6 {[%clk 0:02:58.1]} 3. d4 {[%clk 0:02:53.1]} 3... exd4 {[%clk
0:02:56.8]} 4. Nxd4 {[%clk 0:02:54]} 4... Bc5 {[%clk 0:02:56.2]} 5. Nb3 {[%clk
0:02:53.3]} 5... Bb6 {[%clk 0:02:54.4]} 6. Nc3 {[%clk 0:02:52.4]} 6... Nf6
{[%clk 0:02:52]} 7. Qe2 {[%clk 0:02:50.7]} 7... O-O {[%clk 0:02:50.5]} 8. Be3
{[%clk 0:02:51]} 8... Re8 {[%clk 0:02:47.5]} 9. f3 {[%clk 0:02:49.7]} 9... d6
{[%clk 0:02:42.5]} 10. O-O-O {[%clk 0:02:49.2]} 10... Be6 {[%clk 0:02:39]} 11.
Nd4 {[%clk 0:02:47.7]} 11... Nxd4 {[%clk 0:02:36]} 12. Bxd4 {[%clk 0:02:48.6]}
12... Nd7 {[%clk 0:02:24.8]} 13. g4 {[%clk 0:02:40.9]} 13... Qg5+ {[%clk
0:02:19]} 14. Kb1 {[%clk 0:02:23.6]} 14... Qa5 {[%clk 0:02:17.1]} 15. h4 {[%clk
0:02:17.9]} 15... Ne5 {[%clk 0:02:15.1]} 16. h5 {[%clk 0:01:48]} 16... Nc4
{[%clk 0:01:50.5]} 17. b3 {[%clk 0:01:36.5]} 17... Qa3 {[%clk 0:01:38.8]} 18.
Nb5 {[%clk 0:01:23.8]} 18... Qb4 {[%clk 0:01:09.1]} 19. Bc3 {[%clk 0:01:02.2]}
19... Qxb5 {[%clk 0:01:02.5]} 20. a4 {[%clk 0:01:02.3]} 20... Qc6 {[%clk
0:00:54.1]} 21. bxc4 {[%clk 0:01:01]} 21... Qxa4 {[%clk 0:00:52.1]} 22. h6
{[%clk 0:00:58.3]} 22... g6 {[%clk 0:00:46]} 23. Qd3 {[%clk 0:00:56.4]} 23...
Qa3 {[%clk 0:00:21.2]} 24. Bb2 {[%clk 0:00:48.3]} 24... Qxd3 {[%clk 0:00:20.3]}
25. cxd3 {[%clk 0:00:49.2]} 25... c6 {[%clk 0:00:14.3]} 26. Be2 {[%clk 0:00:43]}
26... Bc7 {[%clk 0:00:14.6]} 27. f4 {[%clk 0:00:42.9]} 27... Bd7 {[%clk
0:00:11.4]} 28. f5 {[%clk 0:00:42.6]} 28... d5 {[%clk 0:00:11]} 29. fxg6 {[%clk
0:00:42.1]} 29... fxg6 {[%clk 0:00:10.6]} 30. cxd5 {[%clk 0:00:41.5]} 30... cxd5
{[%clk 0:00:09.6]} 31. Rdf1 {[%clk 0:00:41.9]} 31... Be5 {[%clk 0:00:09.8]} 32.
d4 {[%clk 0:00:41.4]} 32... Bh8 {[%clk 0:00:09.8]} 33. e5 {[%clk 0:00:41.7]}
33... Rac8 {[%clk 0:00:07.9]} 34. Bd3 {[%clk 0:00:38.9]} 34... a6 {[%clk
0:00:08]} 35. g5 {[%clk 0:00:38.3]} 35... Be6 {[%clk 0:00:07.8]} 36. Rf2 {[%clk
0:00:38.4]} 36... Rf8 {[%clk 0:00:07.8]} 37. Rhf1 {[%clk 0:00:38.9]} 37... Rxf2
{[%clk 0:00:07.8]} 38. Rxf2 {[%clk 0:00:39.8]} 38... Rf8 {[%clk 0:00:08.2]} 39.
Rc2 {[%clk 0:00:35.8]} 39... Rc8 {[%clk 0:00:07.4]} 40. Ba3 {[%clk 0:00:34.7]}
40... Rxc2 {[%clk 0:00:06.8]} 41. Kxc2 {[%clk 0:00:35.6]} 41... Kf7 {[%clk
0:00:06]} 42. Kc3 {[%clk 0:00:34.4]} 42... Ke8 {[%clk 0:00:06.6]} 43. Kb4 {[%clk
0:00:34.6]} 43... Kd7 {[%clk 0:00:07.4]} 44. Ka5 {[%clk 0:00:34.5]} 44... Kc7
{[%clk 0:00:07.5]} 45. Bd6+ {[%clk 0:00:34.9]} 45... Kc6 {[%clk 0:00:07.5]} 46.
Bc2 {[%clk 0:00:34.9]} 46... b6+ {[%clk 0:00:07.3]} 47. Kxa6 {[%clk 0:00:34.5]}
47... Bc8+ {[%clk 0:00:04.7]} 48. Ka7 {[%clk 0:00:34.8]} 48... b5 {[%clk
0:00:05.2]} 49. Kb8 {[%clk 0:00:33.9]} 49... Be6 {[%clk 0:00:04.4]} 50. Bd3
{[%clk 0:00:33.6]} 50... Kb6 {[%clk 0:00:04.5]} 51. Bb4 {[%clk 0:00:33.4]} 51...
Kc6 {[%clk 0:00:04.3]} 52. Ka7 {[%clk 0:00:33.4]} 52... Bd7 {[%clk 0:00:04.2]}
53. Ka6 {[%clk 0:00:32.8]} 53... Kc7 {[%clk 0:00:04.4]} 54. Bxb5 {[%clk
0:00:31.7]} 54... Bc8+ {[%clk 0:00:04]} 55. Ka7 {[%clk 0:00:31.6]} 55... Kd8
{[%clk 0:00:03.4]} 56. Bc5 {[%clk 0:00:30.8]} 56... Be6 {[%clk 0:00:02.9]} 57.
Bc6 {[%clk 0:00:30.9]} 57... Kc7 {[%clk 0:00:03]} 58. Be8 {[%clk 0:00:31.2]}
58... Kd8 {[%clk 0:00:02.9]} 59. Bb5 {[%clk 0:00:31.6]} 1-0

[Event "*** Titled Tuesday Blitz"]
[Site "Chess.com"]
[Date "2020.10.27"]
[Round "2"]
[White "pirulillo"]
[Black "bsnsun"]
[Result "1/2-1/2"]
[WhiteElo "2214"]
[BlackElo "2435"]
[TimeControl "180+1"]
[EndTime "10:18:39 PDT"]
[Termination "Game drawn by agreement"]

1. e4 {[%clk 0:03:00.9]} 1... c5 {[%clk 0:02:59.4]} 2. Nf3 {[%clk 0:02:53.3]}
2... d6 {[%clk 0:02:59.4]} 3. d4 {[%clk 0:02:52.8]} 3... cxd4 {[%clk 0:02:59.4]}
4. Nxd4 {[%clk 0:02:53.7]} 4... Nf6 {[%clk 0:02:57]} 5. Nc3 {[%clk 0:02:54.3]}
5... a6 {[%clk 0:02:54.8]} 6. Rg1 {[%clk 0:02:53.4]} 6... e5 {[%clk 0:02:54.3]}
7. Nb3 {[%clk 0:02:50.6]} 7... h5 {[%clk 0:02:53]} 8. f4 {[%clk 0:02:46.5]} 8...
Nc6 {[%clk 0:02:51.7]} 9. Qe2 {[%clk 0:02:38.1]} 9... Be7 {[%clk 0:02:42.7]} 10.
h3 {[%clk 0:02:29.3]} 10... exf4 {[%clk 0:02:29]} 11. Bxf4 {[%clk 0:02:27.8]}
11... Ne5 {[%clk 0:02:29.1]} 12. O-O-O {[%clk 0:02:25.7]} 12... Qc7 {[%clk
0:02:28.9]} 13. Kb1 {[%clk 0:02:21.4]} 13... Be6 {[%clk 0:02:27.8]} 14. Nd5
{[%clk 0:02:17.2]} 14... Bxd5 {[%clk 0:01:59.3]} 15. exd5 {[%clk 0:02:16.5]}
15... Rc8 {[%clk 0:01:59.9]} 16. c3 {[%clk 0:02:08.4]} 16... Qb6 {[%clk
0:01:54.4]} 17. Be3 {[%clk 0:02:03.4]} 17... Qc7 {[%clk 0:01:49]} 18. g4 {[%clk
0:01:53.1]} 18... hxg4 {[%clk 0:01:21]} 19. hxg4 {[%clk 0:01:54]} 19... Qc4
{[%clk 0:01:20.3]} 20. Qxc4 {[%clk 0:00:36.1]} 20... Nxc4 {[%clk 0:01:19.1]} 21.
Bd4 {[%clk 0:00:32.7]} 21... Rh2 {[%clk 0:01:12.7]} 22. Rg2 {[%clk 0:00:27.6]}
22... Rxg2 {[%clk 0:01:11.1]} 23. Bxg2 {[%clk 0:00:28.5]} 23... Nxg4 {[%clk
0:01:11.4]} 24. Bxg7 {[%clk 0:00:26.8]} 24... Nge3 {[%clk 0:01:09.9]} 25. Rg1
{[%clk 0:00:26.3]} 25... Nxg2 {[%clk 0:01:08.1]} 26. Rxg2 {[%clk 0:00:27.2]}
26... Kd7 {[%clk 0:01:07]} 27. Bd4 {[%clk 0:00:23.5]} 27... Re8 {[%clk
0:00:47.3]} 28. Nd2 {[%clk 0:00:22.7]} 28... Nxd2+ {[%clk 0:00:38.1]} 29. Rxd2
{[%clk 0:00:23.6]} 29... Rg8 {[%clk 0:00:38.6]} 30. Kc2 {[%clk 0:00:22.6]} 30...
f5 {[%clk 0:00:37.8]} 31. Rf2 {[%clk 0:00:21.3]} 31... Rf8 {[%clk 0:00:36.9]}
32. c4 {[%clk 0:00:20.4]} 32... f4 {[%clk 0:00:37.3]} 33. Rf3 {[%clk 0:00:20]}
33... Rf5 {[%clk 0:00:35.9]} 34. Kd3 {[%clk 0:00:19.9]} 34... Bh4 {[%clk
0:00:33.3]} 35. Ke4 {[%clk 0:00:19.3]} 35... Rf7 {[%clk 0:00:26.7]} 36. Rxf4
{[%clk 0:00:19.4]} 36... Rxf4+ {[%clk 0:00:27.3]} 37. Kxf4 {[%clk 0:00:19.6]}
37... b5 {[%clk 0:00:27.3]} 38. b3 {[%clk 0:00:19.3]} 38... bxc4 {[%clk
0:00:27.7]} 39. bxc4 {[%clk 0:00:20.2]} 39... Be1 {[%clk 0:00:27.6]} 40. Kf5
{[%clk 0:00:20.2]} 40... Bb4 {[%clk 0:00:27.4]} 41. Kf6 {[%clk 0:00:19.1]} 41...
Ba3 {[%clk 0:00:27.3]} 42. Kf7 {[%clk 0:00:18.9]} 42... Bb4 {[%clk 0:00:27.6]}
43. Kf6 {[%clk 0:00:18.9]} 43... Ba3 {[%clk 0:00:28]} 44. Kf5 {[%clk 0:00:19.2]}
44... Bb4 {[%clk 0:00:28.4]} 45. Ke4 {[%clk 0:00:19.7]} 45... Be1 {[%clk
0:00:28.8]} 46. Kd3 {[%clk 0:00:20]} 46... Bh4 {[%clk 0:00:28.3]} 47. c5 {[%clk
0:00:20.2]} 47... dxc5 {[%clk 0:00:28.2]} 48. Bxc5 {[%clk 0:00:21.1]} 48... Bf6
{[%clk 0:00:27.7]} 49. Kc4 {[%clk 0:00:21.4]} 49... Bh4 {[%clk 0:00:27.2]} 50.
Bd4 {[%clk 0:00:20.2]} 50... Be1 {[%clk 0:00:26.6]} 51. Be5 {[%clk 0:00:19.8]}
51... Bd2 {[%clk 0:00:26.2]} 52. Kc5 {[%clk 0:00:19.8]} 52... Be3+ {[%clk
0:00:24.6]} 53. Bd4 {[%clk 0:00:20.1]} 53... Bd2 {[%clk 0:00:18.6]} 54. a4
{[%clk 0:00:20.2]} 54... Be1 {[%clk 0:00:17.8]} 55. Kc4 {[%clk 0:00:19.6]} 55...
Kd6 {[%clk 0:00:17.4]} 56. Bc3 {[%clk 0:00:19]} 56... Bxc3 {[%clk 0:00:16.5]}
57. Kxc3 {[%clk 0:00:18.9]} 57... Kxd5 {[%clk 0:00:17.4]} 58. Kb3 {[%clk
0:00:19.1]} 58... Kc5 {[%clk 0:00:17.5]} 1/2-1/2

[Event "*** Titled Tuesday Blitz"]
[Site "Chess.com"]
[Date "2020.10.27"]
[Round "2"]
[White "ailime26"]
[Black "PowerThinking2650"]
[Result "0-1"]
[WhiteElo "1893"]
[BlackElo "2391"]
[TimeControl "180+1"]
[EndTime "10:18:43 PDT"]
[Termination "PowerThinking2650 won on time"]

1. e4 {[%clk 0:03:00.9]} 1... e5 {[%clk 0:02:58.8]} 2. Nf3 {[%clk 0:02:53.2]}
2... Nc6 {[%clk 0:02:58.7]} 3. Nc3 {[%clk 0:02:29.3]} 3... Nf6 {[%clk
0:02:58.1]} 4. d4 {[%clk 0:02:27.3]} 4... exd4 {[%clk 0:02:59]} 5. Nxd4 {[%clk
0:02:25.9]} 5... Bb4 {[%clk 0:02:59.4]} 6. Nxc6 {[%clk 0:02:23.7]} 6... bxc6
{[%clk 0:03:00.3]} 7. Bd3 {[%clk 0:02:24.1]} 7... O-O {[%clk 0:02:59.9]} 8. O-O
{[%clk 0:02:20.6]} 8... d5 {[%clk 0:03:00.4]} 9. exd5 {[%clk 0:02:20]} 9... cxd5
{[%clk 0:03:01.3]} 10. Qf3 {[%clk 0:02:19.9]} 10... c6 {[%clk 0:03:00.6]} 11.
Bg5 {[%clk 0:02:20.3]} 11... h6 {[%clk 0:02:59.9]} 12. Bxf6 {[%clk 0:02:19.4]}
12... Qxf6 {[%clk 0:03:00.8]} 13. Qxf6 {[%clk 0:02:18.9]} 13... gxf6 {[%clk
0:03:01.7]} 14. Ne2 {[%clk 0:02:18.9]} 14... Bc5 {[%clk 0:03:01.9]} 15. b3
{[%clk 0:02:10.2]} 15... Rb8 {[%clk 0:03:01.2]} 16. Ng3 {[%clk 0:02:06]} 16...
Re8 {[%clk 0:03:00.7]} 17. Bf5 {[%clk 0:02:05.3]} 17... Ba6 {[%clk 0:02:44.1]}
18. Rfe1 {[%clk 0:01:59.5]} 18... Re5 {[%clk 0:02:41.1]} 19. Rxe5 {[%clk
0:01:35.3]} 19... fxe5 {[%clk 0:02:40.4]} 20. Re1 {[%clk 0:01:35.6]} 20... e4
{[%clk 0:02:38.4]} 21. Nh5 {[%clk 0:01:34.9]} 21... Bd4 {[%clk 0:02:20.7]} 22.
g3 {[%clk 0:01:26.4]} 22... Re8 {[%clk 0:02:10.6]} 23. Bd7 {[%clk 0:01:22.9]}
23... Re5 {[%clk 0:01:53.1]} 24. Nf6+ {[%clk 0:01:03.8]} 24... Kg7 {[%clk
0:01:50.6]} 25. Ng4 {[%clk 0:01:00.8]} 25... Rg5 {[%clk 0:01:37.3]} 26. Ne3
{[%clk 0:00:58.5]} 26... Bxe3 {[%clk 0:01:27.4]} 27. Rxe3 {[%clk 0:00:57.5]}
27... Bb7 {[%clk 0:01:27]} 28. a4 {[%clk 0:00:56.1]} 28... Re5 {[%clk
0:01:15.3]} 29. Kf1 {[%clk 0:00:47.1]} 29... d4 {[%clk 0:01:14.2]} 30. Re1
{[%clk 0:00:45.1]} 30... c5 {[%clk 0:01:14.3]} 31. Bb5 {[%clk 0:00:40.2]} 31...
f5 {[%clk 0:01:14.1]} 32. Ke2 {[%clk 0:00:39.6]} 32... Kf6 {[%clk 0:01:11.9]}
33. h3 {[%clk 0:00:38.5]} 33... Re7 {[%clk 0:01:10.9]} 34. Kd2 {[%clk
0:00:37.3]} 34... Ke5 {[%clk 0:01:10.4]} 35. Bc4 {[%clk 0:00:35.2]} 35... Rg7
{[%clk 0:01:09]} 36. Re2 {[%clk 0:00:31.3]} 36... f4 {[%clk 0:01:01.9]} 37.
gxf4+ {[%clk 0:00:23.1]} 37... Kxf4 {[%clk 0:01:01.9]} 38. c3 {[%clk 0:00:20.2]}
38... d3 {[%clk 0:00:56.5]} 39. Bxd3 {[%clk 0:00:20.3]} 39... exd3 {[%clk
0:00:55.3]} 40. Kxd3 {[%clk 0:00:21.2]} 40... Bf3 {[%clk 0:00:44.5]} 41. Re3
{[%clk 0:00:19.5]} 41... Rg1 {[%clk 0:00:39.9]} 42. Kc4 {[%clk 0:00:19]} 42...
Rf1 {[%clk 0:00:36.5]} 43. Kxc5 {[%clk 0:00:18.4]} 43... Rxf2 {[%clk 0:00:36.8]}
44. Re8 {[%clk 0:00:18.4]} 44... h5 {[%clk 0:00:35.6]} 45. Kb4 {[%clk
0:00:13.7]} 45... Kg3 {[%clk 0:00:30.7]} 46. Re3 {[%clk 0:00:11.3]} 46... Kxh3
{[%clk 0:00:30.5]} 47. c4 {[%clk 0:00:11.2]} 47... Kg3 {[%clk 0:00:30.8]} 48. c5
{[%clk 0:00:11.1]} 48... Rc2 {[%clk 0:00:30.4]} 49. Kb5 {[%clk 0:00:09.9]} 49...
h4 {[%clk 0:00:28.8]} 50. b4 {[%clk 0:00:08.7]} 50... h3 {[%clk 0:00:28.2]} 51.
c6 {[%clk 0:00:07.9]} 51... Rxc6 {[%clk 0:00:27.2]} 52. Rxf3+ {[%clk 0:00:05.6]}
52... Kxf3 {[%clk 0:00:27.4]} 53. Kxc6 {[%clk 0:00:06.5]} 53... h2 {[%clk
0:00:28]} 54. Kb7 {[%clk 0:00:06.7]} 54... h1=Q {[%clk 0:00:27.4]} 55. Kxa7
{[%clk 0:00:06.8]} 55... Qh4 {[%clk 0:00:24.1]} 56. b5 {[%clk 0:00:05.6]} 56...
Qxa4+ {[%clk 0:00:21.3]} 57. Kb6 {[%clk 0:00:05.5]} 57... Ke4 {[%clk 0:00:22.2]}
0-1

[Event "*** Titled Tuesday Blitz"]
[Site "Chess.com"]
[Date "2020.10.27"]
[Round "2"]
[White "Kazmin_Dmitrij"]
[Black "Gulkov_Igor"]
[Result "1-0"]
[WhiteElo "2275"]
[BlackElo "2459"]
[TimeControl "180+1"]
[EndTime "10:18:44 PDT"]
[Termination "Kazmin_Dmitrij won on time"]

1. e4 {[%clk 0:03:00.9]} 1... c5 {[%clk 0:02:59.1]} 2. f4 {[%clk 0:02:59.5]}
2... g6 {[%clk 0:02:58.6]} 3. Nf3 {[%clk 0:02:49.7]} 3... Bg7 {[%clk 0:02:58.3]}
4. d4 {[%clk 0:02:39.9]} 4... cxd4 {[%clk 0:02:57.2]} 5. Nxd4 {[%clk 0:02:34]}
5... Nc6 {[%clk 0:02:56.2]} 6. c3 {[%clk 0:02:29.7]} 6... Nxd4 {[%clk
0:02:46.8]} 7. cxd4 {[%clk 0:02:28.4]} 7... Qb6 {[%clk 0:02:46.9]} 8. e5 {[%clk
0:02:23]} 8... d6 {[%clk 0:02:46.1]} 9. Nc3 {[%clk 0:02:20.8]} 9... Nh6 {[%clk
0:02:01.4]} 10. Bb5+ {[%clk 0:02:17.6]} 10... Kf8 {[%clk 0:01:55.8]} 11. O-O
{[%clk 0:02:13]} 11... Nf5 {[%clk 0:01:54.6]} 12. Re1 {[%clk 0:00:53.4]} 12...
dxe5 {[%clk 0:01:51.5]} 13. fxe5 {[%clk 0:00:48.5]} 13... Qxd4+ {[%clk
0:01:49.4]} 14. Kh1 {[%clk 0:00:45.8]} 14... Qxd1 {[%clk 0:01:22.1]} 15. Rxd1
{[%clk 0:00:43.8]} 15... Be6 {[%clk 0:01:15.4]} 16. Bf4 {[%clk 0:00:41.1]} 16...
g5 {[%clk 0:00:56.7]} 17. Bxg5 {[%clk 0:00:35.8]} 17... Bxe5 {[%clk 0:00:55.4]}
18. Bd3 {[%clk 0:00:29.2]} 18... Rg8 {[%clk 0:00:25.3]} 19. Bxf5 {[%clk
0:00:24.9]} 19... Bxf5 {[%clk 0:00:24.4]} 20. Bh6+ {[%clk 0:00:24.7]} 20... Bg7
{[%clk 0:00:23.6]} 21. Bf4 {[%clk 0:00:24.7]} 21... Bxc3 {[%clk 0:00:21.3]} 22.
bxc3 {[%clk 0:00:24.2]} 22... Be4 {[%clk 0:00:21.9]} 23. Rd2 {[%clk 0:00:24.1]}
23... f6 {[%clk 0:00:21.5]} 24. Re1 {[%clk 0:00:23.8]} 24... Bc6 {[%clk
0:00:19]} 25. Bh6+ {[%clk 0:00:23.5]} 25... Kf7 {[%clk 0:00:18.5]} 26. Rde2
{[%clk 0:00:23.8]} 26... e5 {[%clk 0:00:18.2]} 27. Be3 {[%clk 0:00:21.7]} 27...
Rg4 {[%clk 0:00:17.6]} 28. h3 {[%clk 0:00:20.8]} 28... Rg3 {[%clk 0:00:17.4]}
29. Kh2 {[%clk 0:00:20.6]} 29... Rag8 {[%clk 0:00:17.2]} 30. Rg1 {[%clk
0:00:17.2]} 30... h5 {[%clk 0:00:16.6]} 31. Bxa7 {[%clk 0:00:16.3]} 31... Rxc3
{[%clk 0:00:15.6]} 32. Be3 {[%clk 0:00:11.2]} 32... h4 {[%clk 0:00:14.9]} 33.
Bf2 {[%clk 0:00:10.4]} 33... Rc4 {[%clk 0:00:11.1]} 34. Be1 {[%clk 0:00:06.1]}
34... Ke6 {[%clk 0:00:10.9]} 35. Rf1 {[%clk 0:00:06.2]} 35... Re4 {[%clk
0:00:08]} 36. Ref2 {[%clk 0:00:05.8]} 36... Rg6 {[%clk 0:00:07]} 37. Bc3 {[%clk
0:00:05]} 37... Re3 {[%clk 0:00:06.6]} 38. Bd2 {[%clk 0:00:04.9]} 38... Reg3
{[%clk 0:00:06.6]} 39. Rg1 {[%clk 0:00:04.4]} 39... f5 {[%clk 0:00:07]} 40. Be1
{[%clk 0:00:04]} 40... f4 {[%clk 0:00:06.8]} 41. Re2 {[%clk 0:00:03.4]} 41...
Rd3 {[%clk 0:00:06.3]} 42. Rb2 {[%clk 0:00:02.9]} 42... Kf5 {[%clk 0:00:06.3]}
43. Bxh4 {[%clk 0:00:02.9]} 43... e4 {[%clk 0:00:04.1]} 44. Bf2 {[%clk
0:00:03.5]} 44... e3 {[%clk 0:00:04.1]} 45. Be1 {[%clk 0:00:04.1]} 45... Rd1
{[%clk 0:00:03.2]} 46. Bh4 {[%clk 0:00:04]} 46... Rxg1 {[%clk 0:00:02]} 47. Kxg1
{[%clk 0:00:04.4]} 47... f3 {[%clk 0:00:02.5]} 48. g4+ {[%clk 0:00:03.8]} 48...
Ke4 {[%clk 0:00:02.2]} 49. Rb4+ {[%clk 0:00:03.8]} 1-0

[Event "*** Titled Tuesday Blitz"]
[Site "Chess.com"]
[Date "2020.10.27"]
[Round "2"]
[White "SARGISMV"]
[Black "bascheyaro"]
[Result "1-0"]
[WhiteElo "2511"]
[BlackElo "2725"]
[TimeControl "180+1"]
[EndTime "10:18:46 PDT"]
[Termination "SARGISMV won on time"]

1. d4 {[%clk 0:03:00.9]} 1... d5 {[%clk 0:02:54.7]} 2. c4 {[%clk 0:03:00.4]}
2... c6 {[%clk 0:02:54.9]} 3. Nf3 {[%clk 0:02:59.7]} 3... Bf5 {[%clk 0:02:55]}
4. e3 {[%clk 0:03:00.2]} 4... e6 {[%clk 0:02:55.1]} 5. Qb3 {[%clk 0:02:54.7]}
5... Qb6 {[%clk 0:02:54.6]} 6. c5 {[%clk 0:02:54.6]} 6... Qc7 {[%clk 0:02:54.9]}
7. Nh4 {[%clk 0:02:52.1]} 7... Be4 {[%clk 0:02:53.9]} 8. Nc3 {[%clk 0:02:51.1]}
8... Be7 {[%clk 0:02:52.2]} 9. Nxe4 {[%clk 0:02:38.3]} 9... dxe4 {[%clk
0:02:50.6]} 10. g3 {[%clk 0:02:38.7]} 10... Bxh4 {[%clk 0:02:41.5]} 11. gxh4
{[%clk 0:02:39.6]} 11... Qd7 {[%clk 0:02:31.3]} 12. Bg2 {[%clk 0:02:09]} 12...
f5 {[%clk 0:02:30.7]} 13. f3 {[%clk 0:02:07.5]} 13... exf3 {[%clk 0:02:29.4]}
14. Bxf3 {[%clk 0:02:08.4]} 14... Nf6 {[%clk 0:02:29.9]} 15. Bd2 {[%clk
0:02:07.9]} 15... O-O {[%clk 0:02:28.8]} 16. O-O-O {[%clk 0:02:07.7]} 16... b6
{[%clk 0:02:23.7]} 17. Rhg1 {[%clk 0:01:56.8]} 17... Na6 {[%clk 0:02:17.9]} 18.
Qa4 {[%clk 0:01:45.8]} 18... Nb8 {[%clk 0:02:10.8]} 19. cxb6 {[%clk 0:01:45.2]}
19... Qb7 {[%clk 0:02:10.3]} 20. Qb3 {[%clk 0:01:29.8]} 20... Nd5 {[%clk
0:02:10.2]} 21. bxa7 {[%clk 0:01:21.5]} 21... Qxa7 {[%clk 0:02:01.8]} 22. a3
{[%clk 0:01:16]} 22... Nd7 {[%clk 0:02:01.5]} 23. Bxd5 {[%clk 0:01:12.7]} 23...
cxd5 {[%clk 0:01:55]} 24. Bb4 {[%clk 0:01:12.2]} 24... Rfb8 {[%clk 0:01:51.9]}
25. Rg2 {[%clk 0:01:09.3]} 25... Nf6 {[%clk 0:01:46.6]} 26. Rdg1 {[%clk
0:01:07.6]} 26... Rb7 {[%clk 0:01:46.9]} 27. Kb1 {[%clk 0:01:01.9]} 27... Rc8
{[%clk 0:01:39.8]} 28. Rc2 {[%clk 0:00:57.2]} 28... Rbc7 {[%clk 0:01:23.8]} 29.
Rgc1 {[%clk 0:00:54.5]} 29... Ne4 {[%clk 0:01:18.5]} 30. Rxc7 {[%clk 0:00:51.3]}
30... Rxc7 {[%clk 0:01:19.4]} 31. Rxc7 {[%clk 0:00:50.9]} 31... Qxc7 {[%clk
0:01:20.3]} 32. Qc2 {[%clk 0:00:50]} 32... Qb7 {[%clk 0:01:20.4]} 33. h5 {[%clk
0:00:47.2]} 33... Kf7 {[%clk 0:01:18.8]} 34. Ka2 {[%clk 0:00:45.5]} 34... Kf6
{[%clk 0:01:13.6]} 35. Qa4 {[%clk 0:00:30.1]} 35... Qc8 {[%clk 0:01:06.9]} 36.
Qa7 {[%clk 0:00:24.4]} 36... Kg5 {[%clk 0:00:31.1]} 37. Qxg7+ {[%clk 0:00:22]}
37... Kxh5 {[%clk 0:00:31.6]} 38. Qxh7+ {[%clk 0:00:21.4]} 38... Kg4 {[%clk
0:00:32.1]} 39. Qg6+ {[%clk 0:00:16.2]} 39... Kf3 {[%clk 0:00:32.3]} 40. Qg1
{[%clk 0:00:14.6]} 40... Qc4+ {[%clk 0:00:28.1]} 41. Ka1 {[%clk 0:00:14.1]}
41... Ke2 {[%clk 0:00:24.3]} 42. h4 {[%clk 0:00:14.1]} 42... Nf2 {[%clk
0:00:19.1]} 43. Qe1+ {[%clk 0:00:12.7]} 43... Kf3 {[%clk 0:00:19.2]} 44. h5
{[%clk 0:00:12.6]} 44... Nd3 {[%clk 0:00:11.9]} 45. Qd2 {[%clk 0:00:07.8]} 45...
Nc1 {[%clk 0:00:09.6]} 46. Qd1+ {[%clk 0:00:06.5]} 46... Ke4 {[%clk 0:00:07.6]}
47. h6 {[%clk 0:00:06.8]} 47... Nb3+ {[%clk 0:00:06.1]} 48. Kb1 {[%clk
0:00:07.2]} 48... Kxe3 {[%clk 0:00:02.4]} 49. h7 {[%clk 0:00:07]} 49... Nxd4
{[%clk 0:00:02.1]} 50. Qe1+ {[%clk 0:00:06.4]} 50... Kd3 {[%clk 0:00:02]} 51.
h8=Q {[%clk 0:00:07.2]} 51... Qc2+ {[%clk 0:00:01.6]} 52. Ka2 {[%clk 0:00:07.6]}
1-0